bitfinex/quotes_ETHUSD_20250801
["timestamp","ask_amount","ask_price","bid_price","bid_amount"]
[1754088684129,0.9335,3466.4,3465.9,0.144]
[1754088684291,1.2501,3466.3,3465.9,0.144]
[1754088684492,5.664,3466.5,3465.4,2.88561705]
[1754088684696,5.663,3466.6,3466.2,0.144]
[1754088685047,5.663,3466.6,3465.4,0.144]
[1754088685048,0.144,3465.9,3465.4,0.144]
[1754088685245,0.144,3465.9,3465.3,0.144]
[1754088685549,6.1226,3466.4,3465.7,2.88541997]
[1754088685721,6.2666,3466.4,3465.8,0.144]
[1754088685903,6.2666,3466.4,3465.9,2.88517133]
[1754088686091,1.2501,3466.3,3465.8,0.144]
[1754088686292,0.7895,3466.3,3465.8,0.144]
[1754088686492,0.001,3466.4,3466.2,0.144]
[1754088686746,1.2501,3466.3,3465.6,2.88549067]
[1754088686897,3.47869726,3466.2,3465.6,0.144]
[1754088687093,0.55,3466.0,3463.8,1.2102]
[1754088687321,0.55,3465.7,3463.8,1.2102]
[1754088687506,0.7895,3465.6,3464.4,2.88642753]
[1754088687834,2.88596531,3465.1,3463.8,1.2102]
[1754088688047,2.88596531,3465.1,3464.7,0.144]
[1754088688218,5.801,3465.2,3463.2,1.2102]
[1754088688219,4.13610833,3465.0,3463.2,1.2102]
[1754088688420,5.8,3464.9,3464.4,0.144]
[1754088688619,7.15051,3464.9,3463.7,2.88701472]
[1754088688921,0.144,3464.6,3464.0,0.144]
[1754088689317,0.7895,3464.5,3464.0,0.144]
[1754088689517,2.88647507,3464.5,3464.0,0.144]
[1754088689725,0.7895,3464.4,3464.0,0.144]
[1754088690314,5.798,3464.6,3464.0,0.144]
[1754088690764,5.798,3464.6,3464.0,3.03083197]
[1754088691058,5.798,3464.6,3464.0,0.144]
[1754088691642,5.798,3464.6,3464.1,2.8867476]
[1754088691944,2.88651598,3464.4,3464.0,0.144]
[1754088692149,5.798,3464.6,3464.1,2.88675269]
[1754088692449,5.798,3464.6,3464.0,0.144]
[1754088692748,0.7895,3464.5,3464.0,0.144]
[1754088693265,0.7895,3464.4,3464.0,0.144]
[1754088693424,5.798,3464.6,3464.0,0.144]
[1754088693628,2.88675269,3464.1,3464.0,0.144]
[1754088693867,6.47283709,3464.1,3464.0,0.144]
[1754088694007,2.88736167,3463.4,3463.0,0.144]
[1754088694212,5.647,3463.3,3463.0,0.144]
[1754088694450,5.647,3463.3,3463.0,3.03165061]
[1754088694663,5.647,3463.3,3463.0,0.144]
[1754088694867,1.2501,3463.2,3462.6,0.002]
[1754088695028,0.144,3463.1,3462.6,0.1468]
[1754088695372,1.2501,3463.0,3462.6,0.1468]
[1754088695508,0.144,3463.1,3462.6,3.03478197]
[1754088695714,5.647,3463.3,3462.9,0.144]
[1754088695957,5.647,3463.3,3462.9,3.03174825]
[1754088696152,5.643,3463.6,3463.4,2.88726196]
[1754088696324,5.643,3463.6,3463.2,0.144]
[1754088696526,1.2501,3463.5,3463.1,3.03150542]
[1754088696848,0.7895,3463.4,3463.1,0.144]
[1754088697154,5.787,3463.6,3463.1,0.144]
[1754088697461,5.641,3463.5,3463.3,0.144]
[1754088697813,3.7895,3464.1,3463.6,2.88716941]
[1754088698009,5.785,3464.0,3463.6,2.88716941]
[1754088698259,0.144,3464.0,3463.5,0.144]
[1754088698547,0.4606,3464.5,3464.1,2.88675269]
[1754088698548,5.64,3464.2,3464.1,2.88675269]
[1754088698762,5.64,3464.2,3463.9,0.144]
[1754088698940,5.64,3464.2,3463.1,0.7638]
[1754088699281,5.64,3464.2,3464.0,0.144]
[1754088699550,0.144,3464.6,3464.0,0.144]
[1754088699551,4.17293709,3464.1,3464.0,0.144]
[1754088699712,9.77485269,3464.1,3464.0,0.144]
[1754088699912,2.88731458,3463.5,3462.5,2.8880369]
[1754088700113,5.637,3463.4,3462.8,2.88782992]
[1754088700311,8.52435228,3463.4,3462.7,2.88788761]
[1754088700514,6.4265,3463.4,3462.6,0.002]
[1754088700754,9.31391823,3463.4,3462.7,2.88791983]
[1754088700951,6.4265,3463.4,3462.9,2.88774166]
[1754088701153,6.4265,3463.4,3462.6,0.002]
[1754088701154,5.637,3463.4,3462.6,0.002]
[1754088701316,5.634,3463.5,3463.2,2.88744917]
[1754088701653,2.88553697,3465.6,3463.3,1.2102]
[1754088701856,0.7895,3465.2,3463.3,1.2102]
[1754088702054,3.0,3464.8,3463.4,2.88727589]
[1754088702352,3.0,3464.8,3462.6,3.002]
[1754088702353,0.55,3464.3,3462.6,0.002]
[1754088702554,0.55,3464.0,3462.6,0.002]
[1754088702738,2.88715361,3463.7,3462.9,2.88769317]
[1754088703085,5.632,3463.6,3463.1,2.88758553]
[1754088703236,5.632,3463.6,3463.2,2.88749445]
[1754088703637,5.632,3463.6,3463.5,2.88725277]
[1754088703863,5.632,3463.6,3462.8,0.7638]
[1754088704049,5.632,3463.6,3462.6,0.002]
[1754088704250,8.51917276,3463.6,3462.9,2.88769095]
[1754088704450,0.7895,3463.5,3462.6,0.002]
[1754088704679,0.7895,3464.0,3462.6,0.4484]
[1754088704852,0.4606,3464.1,3462.6,0.4484]
[1754088704853,5.629,3463.6,3463.5,2.88725277]
[1754088705055,2.88659142,3464.3,3462.6,0.47728003]
[1754088705056,5.628,3464.0,3463.9,2.88684482]
[1754088705255,5.628,3464.0,3463.8,2.88698333]
[1754088705459,5.628,3464.0,3463.9,2.88691936]
[1754088705776,5.627,3464.4,3463.9,0.5773931]
[1754088706179,5.627,3464.4,3464.2,2.88663933]
[1754088706391,5.627,3464.4,3464.3,2.88658603]
[1754088706549,5.627,3464.4,3463.9,2.88684367]
[1754088706872,5.627,3464.4,3463.5,0.7656]
[1754088706873,5.627,3464.4,3464.1,2.88670317]
[1754088707077,5.627,3464.4,3463.2,0.7656]
[1754088707078,0.7478,3464.3,3463.2,0.7656]
[1754088707264,0.7478,3464.3,3463.8,2.88696657]
[1754088707465,6.8074,3464.2,3462.9,0.4561]
[1754088707671,5.623,3464.1,3463.4,2.88731095]
[1754088707864,5.623,3464.1,3463.5,2.88725277]
[1754088708066,5.622,3464.0,3463.1,0.002]
[1754088708269,8.50893539,3463.9,3463.2,2.88745097]
[1754088708444,8.50893539,3463.9,3463.5,2.88724133]
[1754088708445,5.622,3463.9,3463.5,2.88724133]
[1754088708649,5.622,3463.8,3463.5,2.88724133]
[1754088708953,5.622,3463.8,3463.4,2.88731967]
[1754088709154,6.3698,3463.8,3463.2,2.88745308]
[1754088709468,0.7478,3464.4,3463.2,0.57771086]
[1754088709673,5.62,3464.4,3463.8,2.88697132]
[1754088709868,5.62,3464.4,3463.3,1.2217]
[1754088710039,5.62,3464.4,3464.2,0.144]
[1754088710440,6.3678,3464.4,3464.2,0.144]
[1754088711099,0.7478,3464.3,3464.2,0.144]
[1754088711303,3.63438603,3464.3,3464.2,0.144]
[1754088711445,4.06998603,3464.3,3464.2,0.144]
[1754088711869,1.1834,3464.3,3464.2,0.144]
[1754088712086,2.88672109,3464.2,3463.8,0.144]
[1754088712252,0.7478,3464.3,3463.5,2.88719801]
[1754088712457,3.63446217,3464.3,3464.0,0.144]
[1754088712676,2.88680806,3464.1,3463.8,0.144]
[1754088712863,2.88691936,3463.9,3463.3,2.88738655]
[1754088713061,8.50085046,3464.0,3463.6,0.144]
[1754088713398,2.88700271,3463.8,3463.1,0.002]
[1754088713549,2.88725633,3463.5,3463.2,0.144]
[1754088713752,2.88750288,3463.2,3463.1,0.002]
[1754088713980,4.44549612,3463.2,3463.1,0.002]
[1754088714182,5.62889612,3463.2,3463.1,0.002]
[1754088714348,5.59280234,3463.2,3463.1,0.002]
[1754088714963,3.43791983,3462.7,3462.6,0.002]
[1754088715155,12.82549432,3462.7,3462.6,0.002]
[1754088715366,14.00889432,3462.7,3462.6,0.002]
[1754088715747,3.43817005,3462.4,3462.3,0.002]
[1754088715959,6.58297005,3462.4,3462.3,0.002]
[1754088716189,7.76637005,3462.4,3462.3,0.002]
[1754088716371,9.45288574,3462.4,3461.5,0.1448]
[1754088716574,0.1448,3461.5,3461.0,0.1448]
[1754088716883,0.1448,3461.5,3460.1,0.4561]
[1754088716884,0.1448,3461.3,3460.8,0.1448]
[1754088717245,3.03389694,3461.3,3460.8,0.1448]
[1754088717448,3.78169694,3461.3,3460.8,0.1448]
[1754088717649,2.88917533,3461.2,3460.8,0.1448]
[1754088717959,2.88931533,3461.1,3460.1,0.4561]
[1754088718175,0.55,3461.7,3460.8,2.88944921]
[1754088718376,0.1448,3461.3,3460.8,0.1448]
[1754088718550,5.603,3461.2,3460.8,0.1448]
[1754088719172,9.82633598,3462.3,3460.4,0.4561]
[1754088719173,5.604,3461.1,3460.4,0.4561]
[1754088719373,5.604,3461.1,3460.9,3.03415278]
[1754088719578,5.604,3461.1,3460.9,0.1448]
[1754088720075,5.601,3461.0,3460.9,3.03422182]
[1754088720476,5.601,3461.0,3460.9,0.1448]
[1754088720689,0.1448,3461.5,3460.9,0.1448]
[1754088720985,2.88843351,3462.1,3460.2,2.89000635]
[1754088720986,5.6,3461.3,3460.2,2.89000635]
[1754088721286,6.38491464,3461.2,3460.2,2.88997564]
[1754088721586,0.7478,3461.7,3460.3,0.79449922]
[1754088721841,3.0,3462.2,3461.2,0.1448]
[1754088721969,3.0,3461.9,3461.5,0.1448]
[1754088722145,5.598,3461.8,3461.5,0.1448]
[1754088722349,5.598,3461.8,3459.8,2.89030643]
[1754088722350,1.21950942,3461.7,3460.4,0.7656]
[1754088722594,0.55,3461.5,3459.6,0.4561]
[1754088722805,0.55,3461.5,3459.5,2.89052602]
[1754088722806,0.1448,3460.8,3460.3,0.1448]
[1754088723008,0.1448,3460.8,3459.8,0.1448]
[1754088723009,3.03467914,3460.4,3459.8,0.1448]
[1754088723293,5.596,3460.3,3459.3,0.7656]
[1754088723588,2.88993387,3460.3,3459.6,2.89050383]
[1754088723789,5.595,3460.2,3459.5,2.89054537]
[1754088723949,2.89025694,3459.9,3458.9,2.89109026]
[1754088724152,6.3428,3459.8,3458.4,0.7656]
[1754088724353,6.3428,3459.8,3459.3,2.89070571]
[1754088724596,0.7478,3460.4,3459.5,2.89058921]
[1754088724753,5.593,3460.3,3459.3,0.7656]
[1754088724948,0.7478,3461.7,3459.7,0.55]
[1754088725251,5.594,3461.5,3460.1,5.89004864]
[1754088725460,0.03611255,3461.4,3460.1,3.0]
[1754088725659,0.7478,3461.4,3461.0,2.88933274]
[1754088725865,0.7478,3461.4,3460.2,2.89000635]
[1754088726060,5.592,3461.3,3460.8,2.88948771]
[1754088726266,5.592,3461.3,3460.9,2.88940947]
[1754088726560,5.592,3461.3,3460.1,3.71118504]
[1754088726767,5.591,3461.2,3460.4,2.88979804]
[1754088726976,5.591,3461.2,3461.1,2.88925486]
[1754088727172,4.62492575,3462.7,3460.2,1.7149885]
[1754088727173,0.7478,3462.4,3460.4,0.02889839]
[1754088727352,5.589,3462.3,3461.2,2.88912643]
[1754088727563,2.88881226,3461.7,3460.9,2.88934875]
[1754088727763,8.51398529,3461.6,3460.5,1.2217]
[1754088728098,5.589,3461.6,3460.4,1.2217]
[1754088728462,5.589,3461.6,3461.1,2.88918812]
[1754088728857,1.1834,3461.5,3460.0,0.7656]
[1754088729096,1.1834,3461.5,3461.0,0.002]
[1754088729417,8.47789647,3461.6,3461.0,0.002]
[1754088729614,5.589,3461.6,3461.1,2.88923933]
[1754088729814,5.589,3461.6,3461.0,2.89131491]
[1754088730001,9.22567133,3461.6,3461.0,0.002]
[1754088730406,7.98383511,3461.6,3461.0,0.002]
[1754088730792,6.3368,3461.6,3461.1,2.88922901]
[1754088731114,0.7478,3461.5,3461.0,0.002]
[1754088731316,1.1834,3461.5,3461.0,0.002]
[1754088731520,5.589,3461.6,3461.0,0.002]
[1754088731823,2.88916247,3461.3,3461.0,0.002]
[1754088731987,2.88925486,3461.1,3461.0,0.002]
[1754088732183,6.43925486,3461.1,3461.0,0.002]
[1754088732384,0.4356,3462.5,3461.0,1.2237]
[1754088732588,3.0,3462.3,3461.0,1.2237]
[1754088732808,3.0,3462.3,3461.2,2.88917138]
[1754088733085,3.0,3462.5,3461.4,2.88900444]
[1754088733286,3.0,3462.5,3461.3,1.17977639]
[1754088733287,5.579,3462.4,3461.6,2.88883753]
[1754088733485,5.579,3462.4,3462.3,2.88825347]
[1754088733691,5.579,3462.4,3462.0,2.88842366]
[1754088733896,0.78390316,3462.3,3462.0,0.1448]
[1754088734096,0.7478,3462.3,3462.0,0.1448]
[1754088734317,1.21950421,3462.2,3461.1,2.88922983]
[1754088734480,2.88850375,3462.0,3461.0,0.002]
[1754088734688,0.03610733,3461.9,3461.5,3.03370947]
[1754088734882,0.7478,3461.8,3461.5,0.1448]
[1754088735192,0.7478,3461.7,3461.5,3.03366527]
[1754088735393,5.575,3461.6,3461.5,0.1448]
[1754088735604,6.3054,3461.6,3461.5,0.1448]
[1754088735834,6.3054,3461.6,3461.2,2.88915086]
[1754088736128,6.3054,3461.6,3461.4,0.1448]
[1754088736296,5.575,3461.6,3461.4,0.1448]
[1754088736682,6.3054,3461.6,3461.4,0.1448]
[1754088737312,0.1448,3461.9,3461.5,2.88892098]
[1754088737545,0.7304,3463.2,3461.6,1.1705]
[1754088737748,5.571,3462.9,3461.6,0.02888837]
[1754088738038,3.61825645,3462.8,3461.5,3.32627605]
[1754088738214,2.88806441,3462.6,3461.5,0.4374]
[1754088738414,3.7304,3462.8,3461.6,2.88883753]
[1754088738415,6.61829233,3462.8,3461.6,2.88883753]
[1754088738619,2.88808664,3462.5,3461.0,0.002]
[1754088738821,5.60510212,3462.4,3461.0,0.002]
[1754088739114,0.55,3461.9,3461.0,0.002]
[1754088739337,2.88912672,3461.3,3461.0,0.002]
[1754088739649,6.7319,3461.8,3461.0,0.002]
[1754088739860,2.88925486,3461.1,3461.0,0.002]
[1754088740012,8.49237054,3461.1,3461.0,0.002]
[1754088740207,9.62015486,3461.1,3461.0,0.002]
[1754088740721,12.62015486,3461.1,3461.0,0.002]
[1754088741258,13.17015486,3461.1,3461.0,0.002]
[1754088741408,14.77608649,3461.1,3461.0,0.002]
[1754088742512,14.77608649,3461.1,3461.0,1e-08]
[1754088742709,2.88958881,3460.7,3460.6,1e-08]
[1754088742952,12.03670867,3460.7,3460.6,1e-08]
[1754088743106,0.55,3459.5,3457.8,0.7331]
[1754088743447,7.5350405,3459.6,3456.9,0.4374]
[1754088743448,3.0,3458.7,3456.9,0.4374]
[1754088743648,3.55,3458.1,3456.4,2.89316472]
[1754088743832,6.76104179,3458.6,3457.1,2.89251541]
[1754088743833,5.56,3458.0,3457.1,2.89251541]
[1754088744048,2.89202848,3457.8,3457.1,0.28925154]
[1754088744355,5.559,3458.7,3457.2,1.19942514]
[1754088744558,2.89160597,3458.3,3457.4,5.89228329]
[1754088744757,2.89254572,3457.2,3456.7,1.1705]
[1754088744921,5.59415433,3457.4,3456.6,0.002]
[1754088745125,0.03615538,3457.3,3456.6,0.002]
[1754088745525,2.89293256,3456.7,3456.6,0.002]
[1754088745978,5.557,3456.9,3456.6,0.002]
[1754088746345,0.7304,3457.8,3456.7,1.1705]
[1754088746655,5.556,3458.4,3457.7,2.89202826]
[1754088746854,5.556,3458.4,3458.0,2.89176805]
[1754088747059,3.62142251,3459.0,3457.5,2.89226319]
[1754088747237,3.0,3458.8,3458.2,2.89160834]
[1754088747447,5.555,3458.7,3457.7,0.4374]
[1754088747974,5.6998,3458.7,3458.2,0.1448]
[1754088748173,0.1448,3458.7,3458.6,2.89134331]
[1754088748493,2.89006594,3460.2,3459.4,2.89065377]
[1754088748776,2.92623925,3460.1,3458.7,2.89125972]
[1754088748959,5.552,3460.0,3459.4,2.89066581]
[1754088749137,6.8376,3460.0,3458.6,1.1705]
[1754088749460,4.20002821,3459.9,3458.1,1.1705]
[1754088749672,3.0,3459.4,3458.6,2.89127336]
[1754088749819,5.552,3459.5,3458.7,0.02891259]
[1754088750025,5.551,3460.3,3458.8,0.02891176]
[1754088750236,6.944,3461.2,3458.9,1.19941092]
[1754088750436,2.88873338,3461.8,3459.5,2.89059112]
[1754088750635,0.7304,3462.3,3461.6,2.88883753]
[1754088750846,0.4335,3462.4,3462.3,2.88825347]
[1754088750847,5.55,3462.4,3462.3,2.88825347]
[1754088751035,5.55,3462.8,3462.2,2.88832878]
[1754088751246,5.55,3462.8,3461.6,1.1705]
[1754088751574,0.7304,3463.3,3461.7,0.02888754]
[1754088751877,6.946,3463.8,3462.1,0.55]
[1754088752039,5.548,3464.0,3463.5,2.88723975]
[1754088752238,2.88603133,3465.0,3462.7,3.0]
[1754088752239,0.86758,3465.0,3462.7,3.0]
[1754088752553,7.6754,3465.2,3463.6,1.1705]
[1754088752554,0.98310313,3464.9,3463.6,1.1705]
[1754088752754,0.7304,3464.8,3463.1,0.7331]
[1754088753064,5.546,3464.9,3464.3,2.88657608]
[1754088753269,5.546,3464.9,3464.2,2.88658762]
[1754088753478,5.546,3464.9,3463.6,0.7331]
[1754088753672,3.0,3464.9,3463.6,0.7331]
[1754088753875,5.544,3464.8,3463.6,1.13887717]
[1754088754370,5.544,3464.8,3463.6,0.7331]
[1754088754576,0.7304,3465.8,3464.0,2.88679404]
[1754088754778,0.7304,3466.2,3465.9,2.8851986]
[1754088754938,0.001,3466.4,3464.8,1.1705]
[1754088755133,0.001,3466.4,3465.7,2.88534189]
[1754088755340,0.001,3466.4,3465.2,0.02885836]
[1754088755680,0.001,3466.4,3465.3,2.88575303]
[1754088755888,0.001,3466.4,3466.3,2.88492052]
[1754088756240,0.001,3466.4,3464.5,3.3237812]
[1754088756444,0.001,3466.4,3466.3,2.88492052]
[1754088756645,0.001,3466.4,3465.0,0.55]
[1754088756882,0.001,3466.4,3466.3,2.88492052]
[1754088757057,0.001,3466.4,3464.6,1.11200812]
[1754088757262,2.88500375,3466.2,3465.2,2.88575503]
[1754088757445,0.7304,3466.3,3464.9,2.88608617]
[1754088757780,5.88583774,3466.4,3465.0,0.02886002]
[1754088757987,0.001,3466.4,3466.3,2.88492052]
[1754088758187,0.001,3466.4,3466.3,3.02892052]
[1754088758346,0.001,3466.4,3466.3,3.76202052]
[1754088758544,0.001,3466.4,3466.3,3.02892052]
[1754088759045,0.001,3466.4,3466.3,0.144]
[1754088760196,2.88498995,3466.3,3465.0,5.88600288]
[1754088760399,1.1639,3466.2,3464.3,5.527]
[1754088760599,10.001,3466.4,3465.9,0.144]
[1754088760600,10.145,3466.4,3465.9,0.144]
[1754088760799,10.001,3466.4,3466.1,0.144]
[1754088761094,10.001,3466.4,3466.3,3.02892052]
[1754088761095,0.001,3466.4,3466.3,3.02892052]
[1754088761600,0.001,3466.4,3466.3,4.22826972]
[1754088761962,0.001,3466.4,3466.3,4.19942052]
[1754088762164,0.001,3466.4,3466.3,3.02892052]
[1754088762713,0.001,3466.4,3466.3,4.22826972]
[1754088762861,0.001,3466.4,3466.3,4.93960009]
[1754088763063,0.001,3466.8,3466.3,4.93960009]
[1754088763277,10.0,3467.7,3467.6,2.88383896]
[1754088763472,10.0,3467.7,3467.0,2.88433514]
[1754088763672,10.0,3467.7,3467.6,0.144]
[1754088763932,11.1639,3467.7,3466.4,4.1705]
[1754088764083,10.7304,3467.7,3467.5,0.144]
[1754088764429,1.1639,3467.6,3466.6,0.0288467]
[1754088764579,1.1639,3467.6,3466.2,2.88500375]
[1754088764580,10.0,3467.7,3467.6,0.144]
[1754088764784,11.1639,3467.7,3466.1,3.0]
[1754088765010,2.88383896,3467.6,3467.5,0.144]
[1754088765229,7.08378694,3467.6,3467.5,0.144]
[1754088765376,7.59773896,3467.6,3467.5,0.144]
[1754088765744,2.88515015,3466.1,3464.6,0.4593]
[1754088765898,9.16089263,3466.3,3464.7,0.7644]
[1754088766077,0.43251501,3466.0,3465.5,0.144]
[1754088766418,2.88543899,3465.7,3465.5,0.144]
[1754088766715,0.7599,3466.1,3464.7,0.79326252]
[1754088766882,0.7599,3466.1,3465.6,0.144]
[1754088767079,10.0,3466.0,3464.9,0.02886086]
[1754088767311,10.0,3466.0,3465.0,1.2237]
[1754088767508,10.0,3466.0,3465.9,0.144]
[1754088767920,10.0,3466.0,3465.9,4.25295346]
[1754088768123,12.884024,3467.4,3466.4,2.88482927]
[1754088768283,12.884024,3467.4,3467.0,2.88426423]
[1754088768284,10.0,3467.4,3467.0,2.88426423]
[1754088768624,10.0,3467.4,3467.3,6.02808848]
[1754088768625,6.62231444,3467.4,3467.3,6.02808848]
[1754088768992,0.001,3468.6,3468.1,2.8834232]
[1754088769336,0.001,3468.6,3467.3,0.144]
[1754088769480,0.001,3468.6,3467.6,2.88381394]
[1754088769686,2.8840178,3468.6,3468.1,0.144]
[1754088770011,0.001,3468.6,3468.1,0.144]
[1754088770593,0.001,3468.6,3468.1,1.3677]
[1754088770799,0.001,3468.6,3468.1,0.144]
[1754088770998,0.001,3468.6,3468.1,3.0274232]
[1754088771254,0.001,3468.6,3468.1,1.9876356]
[1754088771527,0.001,3468.6,3468.1,7.84222457]
[1754088772646,1e-08,3468.4,3468.3,2.88325692]
[1754088772843,1e-08,3468.4,3468.3,6.46208948]
[1754088773142,1e-08,3468.4,3468.3,7.80095692]
[1754088773296,0.001,3470.3,3469.3,3.0]
[1754088773498,0.001,3470.3,3470.1,2.88168464]
[1754088773822,0.001,3470.3,3470.2,2.91049506]
[1754088774142,0.001,3470.3,3468.9,3.0]
[1754088774354,0.001,3470.3,3470.2,2.88167828]
[1754088774556,0.001,3470.3,3470.2,2.91049506]
[1754088774829,0.001,3470.3,3469.4,3.0]
[1754088775028,0.001,3470.3,3469.7,2.88203235]
[1754088775029,0.7609,3470.3,3469.7,2.88203235]
[1754088775230,0.7609,3470.3,3469.6,0.02882176]
[1754088775432,0.001,3470.3,3470.0,2.88178833]
[1754088775618,0.001,3470.3,3470.1,0.02881761]
[1754088775825,0.7599,3470.2,3469.5,3.0]
[1754088776152,0.7599,3470.2,3469.4,0.85]
[1754088776445,0.7599,3470.2,3469.4,5.494]
[1754088776647,0.001,3470.3,3470.0,2.88182971]
[1754088776825,0.55,3470.2,3468.3,5.23448327]
[1754088777047,2.88184438,3470.0,3468.3,1.2237]
[1754088777365,3.43202272,3469.8,3467.1,1.2237]
[1754088777649,2.88217661,3469.6,3466.9,5.493]
[1754088777954,0.03602824,3469.5,3466.7,0.7644]
[1754088778098,1.2123,3469.4,3467.0,4.13688047]
[1754088778321,1.2123,3469.4,3466.8,5.492]
[1754088778322,1.79833032,3469.3,3467.2,3.0]
[1754088778522,2.88259202,3469.1,3467.7,2.88375086]
[1754088778727,1.7623,3469.2,3467.1,5.18658805]
[1754088778728,1.7623,3469.2,3467.1,2.18658805]
[1754088778929,4.64481246,3469.2,3468.0,2.88348937]
[1754088779130,4.64481246,3469.2,3468.0,2.88342734]
[1754088779353,1.2123,3469.2,3468.1,0.02883423]
[1754088779536,1.2123,3469.2,3467.9,2.88358949]
[1754088779537,0.7599,3469.2,3467.9,2.88358949]
[1754088779743,0.7599,3469.2,3468.0,0.36600776]
[1754088780067,0.7599,3469.2,3468.0,0.02883506]
[1754088780224,0.7599,3469.2,3467.4,3.0]
[1754088780225,2.88352482,3468.0,3466.8,3.648845]
[1754088780428,2.88352482,3468.0,3465.7,2.88533687]
[1754088780429,2.88367264,3467.8,3465.5,0.7644]
[1754088780731,2.8852503,3466.0,3465.0,0.866377]
[1754088780972,0.55,3466.4,3465.2,2.88577031]
[1754088781171,1.3099,3466.4,3464.9,0.7644]
[1754088781331,0.7599,3466.4,3465.5,2.88558188]
[1754088781533,0.7599,3466.4,3465.6,0.31741322]
[1754088781752,2.8836891,3467.8,3465.1,2.88591959]
[1754088782136,1.2123,3467.7,3465.6,3.0]
[1754088782291,1.2123,3467.7,3465.7,1.81225865]
[1754088782494,0.55,3467.5,3465.8,8.485]
[1754088782646,3.0,3468.3,3466.0,2.88517022]
[1754088782976,0.7599,3468.1,3466.1,1.25255086]
[1754088783180,5.485,3468.5,3466.4,0.55]
[1754088783390,2.88392451,3467.5,3466.2,1.2237]
[1754088783556,0.55,3467.1,3464.7,5.484]
[1754088783756,0.55,3466.9,3465.1,2.8858818]
[1754088783958,0.55,3466.9,3464.8,0.5484]
[1754088783959,0.55,3466.5,3464.8,3.5484]
[1754088784161,4.09714122,3466.4,3464.8,0.5484]
[1754088784360,0.55,3466.3,3464.8,0.5484]
[1754088784574,0.55,3465.9,3464.3,2.88657759]
[1754088784806,0.55,3465.7,3463.7,2.88705237]
[1754088785098,0.55,3465.7,3462.9,1.2237]
[1754088785099,2.8865157,3464.4,3462.9,1.2237]
[1754088785258,2.88687605,3464.0,3463.0,1.27802573]
[1754088785597,0.79598232,3464.3,3462.6,5.482]
[1754088785598,0.03608649,3463.9,3462.7,3.0]
[1754088785800,0.03608649,3463.9,3462.6,8.37000238]
[1754088785801,0.55,3464.2,3462.9,3.0]
[1754088785959,3.64655318,3464.3,3462.9,3.0]
[1754088786160,0.55,3464.2,3463.0,0.6]
[1754088786469,2.88706535,3463.8,3463.0,0.6]
[1754088786785,2.88694002,3463.9,3462.6,2.88792247]
[1754088787094,1.3099,3464.1,3462.3,4.2237]
[1754088787296,1.3099,3464.1,3462.8,2.8877608]
[1754088787606,0.55,3464.3,3463.1,2.88758626]
[1754088787895,0.55,3464.1,3462.9,0.28877608]
[1754088788460,0.7599,3464.2,3462.9,0.02887753]
[1754088788689,0.7599,3464.2,3462.5,3.0]
[1754088788690,0.7599,3464.8,3463.0,0.02887669]
[1754088788890,0.7599,3465.4,3464.9,2.8860715]
[1754088789088,0.7599,3465.2,3464.4,2.88649986]
[1754088789296,0.7599,3465.2,3464.0,3.0]
[1754088789491,0.03607399,3465.1,3464.1,1.25885639]
[1754088789707,1.2123,3465.2,3463.6,3.0]
[1754088789920,1.2123,3465.2,3464.4,2.88643813]
[1754088790226,1.2123,3465.7,3464.6,2.8863043]
[1754088790387,1.2123,3465.7,3464.6,2.88626041]
[1754088790580,1.2123,3465.7,3464.7,0.02886252]
[1754088790842,0.7599,3466.2,3465.2,2.88583631]
[1754088791117,5.476,3467.1,3465.2,5.88583631]
[1754088791283,2.88482102,3466.5,3465.2,8.57532242]
[1754088791482,0.55,3466.3,3465.0,5.88592749]
[1754088791678,0.4524,3466.5,3464.5,1.2237]
[1754088791679,1.2123,3466.2,3464.7,3.0]
[1754088791908,1.2123,3466.2,3465.3,2.88572947]
[1754088792109,1.2123,3466.2,3465.3,2.88568071]
[1754088792427,0.7599,3466.8,3465.4,0.02885669]
[1754088792727,0.7599,3466.8,3464.8,1.9119]
[1754088792728,0.7599,3466.8,3465.1,0.4593]
[1754088792927,2.88426083,3467.1,3465.9,2.88517881]
[1754088793109,0.7599,3467.3,3465.8,2.88532093]
[1754088793290,0.7599,3467.3,3465.9,2.88523299]
[1754088793818,0.48845214,3467.2,3465.5,3.0]
[1754088794022,0.55,3466.4,3465.0,2.88594116]
[1754088794332,0.55,3465.7,3464.2,5.472]
[1754088794628,0.55,3465.5,3465.1,0.144]
[1754088794783,1.3099,3465.5,3465.1,0.144]
[1754088794983,0.7599,3465.5,3465.1,0.144]
[1754088795229,0.7599,3465.5,3464.9,2.88605917]
[1754088795414,0.7599,3465.5,3464.2,8.35865034]
[1754088795587,0.7599,3465.5,3465.2,0.144]
[1754088795782,0.4646,3465.4,3465.2,0.144]
[1754088795984,0.55,3465.3,3464.1,6.932]
[1754088796284,0.694,3465.3,3464.8,0.144]
[1754088796485,0.55,3465.1,3464.1,2.88675116]
[1754088796686,0.694,3465.1,3464.6,0.144]
[1754088796922,1.2083,3465.0,3464.6,0.144]
[1754088797125,0.4646,3465.0,3464.6,0.144]
[1754088797397,0.55,3464.7,3463.6,0.002]
[1754088797543,0.55,3464.4,3463.6,0.002]
[1754088797852,0.55,3464.4,3463.9,0.144]
[1754088798564,0.144,3464.5,3463.9,0.144]